fUST/lending_fUST_20250729
["ID","MTS","AMOUNT","RATE_DAILY","PERIOD"]
[375860478,1753763455188,-706.04,0.00021643,2]
[375860479,1753763455198,-460.0,0.00021643,2]
[375860480,1753763455208,-460.0,0.00021643,2]
[375860481,1753763455218,-1808.84,0.00021643,2]
[375860482,1753763455227,-473.06,0.00021643,2]
[375860483,1753763455237,-460.0,0.00021643,2]
[375860484,1753763455247,-460.0,0.00021643,2]
[375860485,1753763455256,-1309.65,0.00021643,2]
[375860486,1753763455270,-460.0,0.00021643,2]
[375860487,1753763455279,-758.29,0.00021643,2]
[375860488,1753763455289,-460.0,0.00021643,2]
[375860489,1753763455298,-524.23,0.00021643,2]
[375860490,1753763455307,-617.83,0.00021643,2]
[375860491,1753763455316,-460.0,0.00021643,2]
[375860492,1753763455326,-460.0,0.00021643,2]
[375860493,1753763455336,-1499.41,0.00021643,2]
[375860494,1753763455345,-1439.13,0.00021643,2]
[375860495,1753763455354,-666.39,0.00021643,2]
[375860496,1753763455364,-4336.84,0.00021643,2]
[375860497,1753763455374,-460.0,0.00021643,2]
[375860498,1753763455384,-1784.78,0.00021643,2]
[375860499,1753763455398,-1674.87,0.00021643,2]
[375860500,1753763455408,-460.0,0.00021643,2]
[375860501,1753763455418,-460.0,0.00021643,2]
[375860502,1753763455428,-683.26,0.00021643,2]
[375860503,1753763455439,-755.63,0.00021643,2]
[375860504,1753763455448,-460.0,0.00021643,2]
[375860505,1753763455457,-2065.79,0.00021643,2]
[375860506,1753763455467,-529.18,0.00021643,2]
[375860507,1753763455477,-2500.0,0.00021664,2]
[375860508,1753763455486,-360.0,0.00021674,2]
[375860509,1753763455495,-298.0,0.00021689,2]
[375860510,1753763455504,-168.0,0.00021724,2]
[375860511,1753763455514,-160.0,0.00021729,5]
[375860512,1753763455523,-795.5,0.00021783,4]
[375860513,1753763455533,-225.81457781,0.00021788,2]
[375860514,1753763455541,-1009.14387867,0.00021788,2]
[375860515,1753763455551,-1500.0,0.00021788,2]
[375860516,1753763455561,-1001.93957377,0.00021788,2]
[375860517,1753763455571,-500.9491733,0.0002186,2]
[375860518,1753763455580,-500.0,0.0002186,2]
[375860519,1753763455591,-160.0,0.00021879,6]
[375860520,1753763455601,-3000.0,0.000219,2]
[375860521,1753763455612,-298.0,0.00021902,2]
[375860522,1753763455623,-3000.0,0.0002191,2]
[375860523,1753763455632,-151.0,0.00021917,2]
[375860524,1753763455643,-151.0,0.00021917,2]
[375860525,1753763455652,-151.0,0.00021917,2]
[375860526,1753763455662,-274.886701,0.00021917,2]
[375860527,1753763455672,-151.0,0.00021917,2]
[375860528,1753763455681,-460.0,0.00021917,2]
[375860529,1753763455690,-460.0,0.00021917,2]
[375860530,1753763455700,-460.0,0.00021917,2]
[375860531,1753763455709,-520.3,0.00021917,2]
[375860532,1753763455719,-449.10715836,0.00021917,2]
[375860533,1753763455730,-460.0,0.00021917,2]
[375860534,1753763455741,-565.05400722,0.00021917,2]
[375860535,1753763455751,-460.0,0.00021917,2]
[375860536,1753763455762,-460.0,0.00021917,2]
[375860537,1753763455772,-460.0,0.00021917,2]
[375860538,1753763455782,-460.0,0.00021917,2]
[375860539,1753763455793,-460.0,0.00021917,2]
[375860540,1753763455803,-460.0,0.00021917,2]
[375860541,1753763455812,-514.06,0.00021917,2]
[375860542,1753763455823,-460.0,0.00021917,2]
[375860543,1753763455832,-460.0,0.00021917,2]
[375860544,1753763455842,-1625.4,0.00021917,2]
[375860545,1753763455852,-3945.19,0.00021917,2]
[375860546,1753763455862,-460.0,0.00021917,2]
[375860547,1753763455871,-603.14,0.00021917,2]
[375860548,1753763455880,-460.0,0.00021917,2]
[375860549,1753763455890,-460.0,0.00021917,2]
[375860550,1753763455899,-771.0,0.00021917,2]
[375860551,1753763455909,-616.93,0.00021917,2]
[375860552,1753763455919,-2171.93,0.00021917,2]
[375860553,1753763455930,-683.49,0.00021917,2]
[375860554,1753763455940,-460.0,0.00021917,2]
[375860555,1753763455950,-460.0,0.00021917,2]
[375860556,1753763455962,-548.58,0.00021917,2]
[375860557,1753763455972,-497.05,0.00021917,2]
[375860558,1753763455981,-2404.12,0.00021917,2]
[375860559,1753763455992,-460.0,0.00021917,2]
[375860560,1753763456002,-564.31,0.00021917,2]
[375860561,1753763456011,-460.0,0.00021917,2]
[375860562,1753763456021,-460.0,0.00021917,2]
[375860563,1753763456030,-460.0,0.00021917,2]
[375860564,1753763456039,-460.0,0.00021917,2]
[375860565,1753763456048,-1489.29,0.00021917,2]
[375860566,1753763456058,-460.0,0.00021917,2]
[375860567,1753763456067,-632.77,0.00021917,2]
[375860568,1753763456076,-1406.09,0.00021917,2]
[375860569,1753763456086,-460.0,0.00021917,2]
[375860570,1753763456095,-460.0,0.00021917,2]
[375860571,1753763456104,-460.0,0.00021917,2]
[375860572,1753763456113,-706.04,0.00021917,2]
[375860573,1753763456123,-460.0,0.00021917,2]
[375860574,1753763456132,-460.0,0.00021917,2]
[375860575,1753763456143,-1808.84,0.00021917,2]
[375860576,1753763456152,-473.06,0.00021917,2]
[375860577,1753763456161,-460.0,0.00021917,2]
[375860578,1753763456171,-460.0,0.00021917,2]
[375860579,1753763456180,-1309.65,0.00021917,2]
[375860580,1753763456190,-460.0,0.00021917,2]
[375860581,1753763456199,-758.29,0.00021917,2]
[375860582,1753763456208,-446.66479869,0.00021917,2]
[375860583,1753763456218,-524.23,0.00021917,2]
[375860584,1753763456227,-617.83,0.00021917,2]
[375860585,1753763456237,-460.0,0.00021917,2]
[375860586,1753763456246,-460.0,0.00021917,2]
[375860587,1753763456255,-1499.41,0.00021917,2]
[375860588,1753763456265,-1439.13,0.00021917,2]
[375860589,1753763456274,-666.39,0.00021917,2]
[375860590,1753763456284,-4336.84,0.00021917,2]
[375860591,1753763456294,-460.0,0.00021917,2]
[375860592,1753763456304,-1784.78,0.00021917,2]
[375860593,1753763456313,-1674.87,0.00021917,2]
[375860594,1753763456323,-460.0,0.00021917,2]
[375860595,1753763456332,-460.0,0.00021917,2]
[375860596,1753763456344,-683.26,0.00021917,2]
[375860597,1753763456353,-755.63,0.00021917,2]
[375860598,1753763456363,-460.0,0.00021917,2]
[375860599,1753763456373,-2065.79,0.00021917,2]
[375860600,1753763456383,-529.18,0.00021917,2]
[375860601,1753763456396,-256.648826,0.00021918,2]
[375860602,1753763456406,-256.648826,0.00021918,2]
[375860603,1753763456416,-256.648826,0.00021918,2]
[375860604,1753763456425,-256.648826,0.00021918,2]
[375860605,1753763456436,-256.648826,0.00021918,2]
[375860606,1753763456447,-256.648826,0.00021918,2]
[375860607,1753763456456,-150.0,0.00021918,2]
[375860608,1753763456575,-152.0,0.00021918,2]
[375860609,1753763456599,-152.0,0.00021918,2]
[375860610,1753763456608,-152.0,0.00021918,2]
[375860611,1753763456618,-154.1640909,0.00021918,2]
[375860612,1753763456628,-150.0,0.00021918,2]
[375860613,1753763456637,-150.08466994,0.00021918,2]
[375860614,1753763456646,-3000.0,0.0002192,2]
[375860615,1753763456656,-3000.0,0.0002193,2]
[375860616,1753763456665,-4747.258826,0.0002194,2]
[375860617,1753763456674,-2001.0083313,0.00021941,2]
[375860618,1753763456684,-4234.44779272,0.0002195,2]
[375860619,1753763456693,-500.0,0.00021978,2]
[375860620,1753763456703,-975.343,0.00021983,2]
[375860621,1753763456712,-409.224,0.00021983,2]
[375860622,1753763456722,-425.682,0.00021983,2]
[375860623,1753763456731,-2159.0,0.00021983,2]
[375860624,1753763456740,-5336.04,0.00022,7]
[375860625,1753763456750,-21687.28,0.00022,2]
[375860626,1753763456759,-151.0,0.00022,7]
[375860627,1753763456769,-151.0,0.00022,7]
[375860628,1753763456778,-151.0,0.00022,7]
[375860629,1753763456788,-151.0,0.00022,7]
[375860630,1753763456798,-858.22,0.00022,7]
[375860631,1753763456808,-1809.71,0.00022,7]
[375860632,1753763456818,-152.537207,0.00022,7]
[375860633,1753763456828,-180.427728,0.00022,7]
[375860634,1753763456839,-180.427728,0.00022,7]
[375860635,1753763456849,-151.0,0.00022,7]
[375860636,1753763456858,-151.0,0.00022,7]
[375860637,1753763456868,-160.0,0.00022028,7]
[375860638,1753763456877,-250.02188203,0.00022091,2]
[375860639,1753763456886,-168.0,0.00022101,2]
[375860640,1753763456897,-168.0,0.00022135,2]
[375860641,1753763456906,-160.0,0.00022178,8]
[375860642,1753763456915,-151.0,0.0002219,7]
[375860643,1753763456925,-152.853523,0.0002219,7]
[375860644,1753763456935,-151.0,0.00022191,7]
[375860645,1753763456945,-151.0,0.00022191,7]
[375860646,1753763456954,-151.0,0.00022191,7]
[375860647,1753763456964,-294.361666,0.00022191,7]
[375860648,1753763456974,-151.0,0.00022191,7]
[375860649,1753763456984,-151.0,0.00022191,7]
[375860650,1753763456993,-151.0,0.00022191,7]
[375860651,1753763457003,-176.69787899,0.00022191,2]
[375860652,1753763457013,-460.0,0.00022191,2]
[375860653,1753763457023,-460.0,0.00022191,2]
[375860654,1753763457034,-256.648826,0.00022191,7]
[375860655,1753763457045,-256.648826,0.00022191,7]
[375860656,1753763457055,-520.3,0.00022191,2]
[375860657,1753763457065,-151.0,0.00022191,7]
[375860658,1753763457077,-460.0,0.00022191,2]
[375860659,1753763457086,-460.0,0.00022191,2]
[375860660,1753763457095,-460.0,0.00022191,2]
[375860661,1753763457105,-151.0,0.00022191,7]
[375860662,1753763457115,-460.0,0.00022191,2]
[375860663,1753763457124,-460.0,0.00022191,2]
[375860664,1753763457133,-460.0,0.00022191,2]
[375860665,1753763457144,-193.529118,0.00022191,7]
[375860666,1753763457153,-193.529118,0.00022191,7]
[375860667,1753763457163,-183.027764,0.00022191,7]
[375860668,1753763457172,-201.792788,0.00022191,7]
[375860669,1753763457182,-183.027764,0.00022191,7]
[375860670,1753763457192,-206.541168,0.00022191,7]
[375860671,1753763457201,-526.95,0.00022191,2]
[375860672,1753763457211,-514.06,0.00022191,2]
[375860673,1753763457220,-151.0,0.00022191,7]
[375860674,1753763457229,-460.0,0.00022191,2]
[375860675,1753763457239,-400.626578,0.00022191,7]
[375860676,1753763457248,-400.626578,0.00022191,7]
[375860677,1753763457258,-460.0,0.00022191,2]
[375860678,1753763457267,-1625.4,0.00022191,2]
[375860679,1753763457277,-3945.19,0.00022191,2]
[375860680,1753763457287,-151.0,0.00022191,7]
[375860681,1753763457296,-151.0,0.00022191,7]
[375860682,1753763457305,-603.14,0.00022191,2]
[375860683,1753763457315,-151.0,0.00022191,7]
[375860684,1753763457326,-460.0,0.00022191,2]
[375860685,1753763457337,-460.0,0.00022191,2]
[375860686,1753763457347,-771.0,0.00022191,2]
[375860687,1753763457356,-616.93,0.00022191,2]
[375860688,1753763457366,-2171.93,0.00022191,2]
[375860689,1753763457375,-683.49,0.00022191,2]
[375860690,1753763457385,-151.0,0.00022191,7]
[375860691,1753763457399,-460.0,0.00022191,2]
[375860692,1753763457409,-460.0,0.00022191,2]
[375860693,1753763457418,-497.05,0.00022191,2]
[375860694,1753763457428,-2404.12,0.00022191,2]
[375860695,1753763457438,-460.0,0.00022191,2]
[375860696,1753763457447,-564.31,0.00022191,2]
[375860697,1753763457457,-471.77555552,0.00022191,2]
[375860698,1753763457467,-460.0,0.00022191,2]
[375860699,1753763457477,-460.0,0.00022191,2]
[375860700,1753763457488,-460.0,0.00022191,2]
[375860701,1753763457498,-1489.29,0.00022191,2]
[375860702,1753763457507,-151.0,0.00022191,7]
[375860703,1753763457516,-460.0,0.00022191,2]
[375860704,1753763457526,-151.0,0.00022191,7]
[375860705,1753763457535,-632.77,0.00022191,2]
[375860706,1753763457544,-1406.09,0.00022191,2]
[375860707,1753763457554,-460.0,0.00022191,2]
[375860708,1753763457564,-460.0,0.00022191,2]
[375860709,1753763457573,-460.0,0.00022191,2]
[375860710,1753763457583,-706.04,0.00022191,2]
[375860711,1753763457594,-460.0,0.00022191,2]
[375860712,1753763457603,-460.0,0.00022191,2]
[375860713,1753763457613,-1808.84,0.00022191,2]
[375860714,1753763457622,-473.06,0.00022191,2]
[375860715,1753763457632,-460.0,0.00022191,2]
[375860716,1753763457647,-460.0,0.00022191,2]
[375860717,1753763457665,-1309.65,0.00022191,2]
[375860718,1753763457682,-460.0,0.00022191,2]
[375860719,1753763457696,-758.29,0.00022191,2]
[375860720,1753763457710,-524.23,0.00022191,2]
[375860721,1753763457725,-617.83,0.00022191,2]
[375860722,1753763457741,-460.0,0.00022191,2]
[375860723,1753763457757,-460.0,0.00022191,2]
[375860724,1753763457772,-1499.41,0.00022191,2]
[375860725,1753763457789,-1439.13,0.00022191,2]
[375860726,1753763457804,-666.39,0.00022191,2]
[375860727,1753763457818,-151.0,0.00022191,7]
[375860728,1753763457831,-4336.84,0.00022191,2]
[375860729,1753763457846,-151.0,0.00022191,7]
[375860730,1753763457862,-460.0,0.00022191,2]
[375860731,1753763457878,-1784.78,0.00022191,2]
[375860732,1753763457891,-1674.87,0.00022191,2]
[375860733,1753763457905,-151.0,0.00022191,7]
[375860734,1753763457918,-460.0,0.00022191,2]
[375860735,1753763457934,-460.0,0.00022191,2]
[375860736,1753763457950,-683.26,0.00022191,2]
[375860737,1753763457966,-755.63,0.00022191,2]
[375860738,1753763457981,-151.0,0.00022191,7]
[375860739,1753763457998,-151.0,0.00022191,7]
[375860740,1753763458011,-460.0,0.00022191,2]
[375860741,1753763458022,-151.0,0.00022191,7]
[375860742,1753763458033,-2065.79,0.00022191,2]
[375860743,1753763458047,-529.18,0.00022191,2]
[375860744,1753763458064,-791.89605778,0.00022212,2]
[375860745,1753763458077,-795.5,0.00022236,4]
[375860746,1753763458089,-168.0,0.00022283,2]
[375860747,1753763458102,-160.0,0.00022328,9]
[375860748,1753763458117,-408.34002456,0.00022336,2]
[375860749,1753763458129,-168.0,0.00022452,2]
[375860750,1753763458141,-151.0,0.00022465,7]
[375860751,1753763458154,-151.0,0.00022465,7]
[375860752,1753763458166,-154.313196,0.00022465,7]
[375860753,1753763458179,-151.0,0.00022465,7]
[375860754,1753763458192,-564.55075263,0.00022465,2]
[375860755,1753763458204,-460.0,0.00022465,2]
[375860756,1753763458217,-520.3,0.00022465,2]
[375860757,1753763458230,-217.18,0.00022465,2]
[375860758,1753763458243,-460.0,0.00022465,2]
[375860759,1753763458255,-460.0,0.00022465,2]
[375860760,1753763458269,-460.0,0.00022465,2]
[375860761,1753763458283,-514.06,0.00022465,2]
[375860762,1753763458296,-460.0,0.00022465,2]
[375860763,1753763458309,-460.0,0.00022465,2]
[375860764,1753763458321,-1625.4,0.00022465,2]
[375860765,1753763458334,-3945.19,0.00022465,2]
[375860766,1753763458348,-603.14,0.00022465,2]
[375860767,1753763458361,-460.0,0.00022465,2]
[375860768,1753763458373,-771.0,0.00022465,2]
[375860769,1753763458386,-460.0,0.00022465,2]
[375860770,1753763458403,-616.93,0.00022465,2]
[375860771,1753763458416,-2171.93,0.00022465,2]
[375860772,1753763458429,-683.49,0.00022465,2]
[375860773,1753763458443,-460.0,0.00022465,2]
[375860774,1753763458456,-288.14468712,0.00022465,2]
[375860775,1753763458469,-497.05,0.00022465,2]
[375860776,1753763458482,-2404.12,0.00022465,2]
[375860777,1753763458495,-460.0,0.00022465,2]
[375860778,1753763458508,-564.31,0.00022465,2]
[375860779,1753763458521,-460.0,0.00022465,2]
[375860780,1753763458535,-460.0,0.00022465,2]
[375860781,1753763458545,-460.0,0.00022465,2]
[375860782,1753763458555,-1489.29,0.00022465,2]
[375860783,1753763458564,-460.0,0.00022465,2]
[375860784,1753763458574,-632.77,0.00022465,2]
[375860785,1753763458584,-1406.09,0.00022465,2]
[375860786,1753763458595,-460.0,0.00022465,2]
[375860787,1753763458605,-460.0,0.00022465,2]
[375860788,1753763458615,-460.0,0.00022465,2]
[375860789,1753763458625,-706.04,0.00022465,2]
[375860790,1753763458635,-460.0,0.00022465,2]
[375860791,1753763458645,-460.0,0.00022465,2]
[375860792,1753763458655,-1808.84,0.00022465,2]
[375860793,1753763458664,-473.06,0.00022465,2]
[375860794,1753763458674,-460.0,0.00022465,2]
[375860795,1753763458683,-460.0,0.00022465,2]
[375860796,1753763458694,-1309.65,0.00022465,2]
[375860797,1753763458704,-460.0,0.00022465,2]
[375860798,1753763458714,-758.29,0.00022465,2]
[375860799,1753763458724,-524.23,0.00022465,2]
[375860800,1753763458734,-617.83,0.00022465,2]
[375860801,1753763458743,-460.0,0.00022465,2]
[375860802,1753763458753,-460.0,0.00022465,2]
[375860803,1753763458762,-1499.41,0.00022465,2]
[375860804,1753763458772,-666.39,0.00022465,2]
[375860805,1753763458782,-1439.13,0.00022465,2]
[375860806,1753763458791,-4336.84,0.00022465,2]
[375860807,1753763458800,-460.0,0.00022465,2]
[375860808,1753763458810,-1784.78,0.00022465,2]
[375860809,1753763458819,-1674.87,0.00022465,2]
[375860810,1753763458829,-460.0,0.00022465,2]
[375860811,1753763458838,-460.0,0.00022465,2]
[375860812,1753763458848,-683.26,0.00022465,2]
[375860813,1753763458857,-755.63,0.00022465,2]
[375860814,1753763458867,-460.0,0.00022465,2]
[375860815,1753763458876,-2065.79,0.00022465,2]
[375860816,1753763458885,-529.18,0.00022465,2]
[375860817,1753763458896,-150.74612421,0.00022466,2]
[375860818,1753763458906,-232.05767895,0.00022466,2]
[375860819,1753763458915,-160.0,0.00022477,10]
[375860820,1753763458925,-2001.0083313,0.00022483,2]
[375860821,1753763458934,-151.0,0.0002249,7]
[375860822,1753763458943,-151.487947,0.0002249,7]
[375860823,1753763458953,-151.0,0.0002249,7]
[375860824,1753763458962,-312.16666667,0.0002249,7]
[375860825,1753763458972,-56665.51736217,0.0002249,7]
[375860826,1753763459360,-460.0,0.00019178,2]
[375860827,1753763459371,-535.56,0.00019452,2]
[375860828,1753763459380,-460.0,0.00019452,2]
[375860829,1753763459390,-535.56,0.00019726,2]
[375860830,1753763459403,-535.56,0.0002,2]
[375860831,1753763459413,-535.56,0.00020273,2]
[375860832,1753763459422,-535.56,0.00020547,2]
[375860833,1753763459432,-460.0,0.00020821,2]
[375860834,1753763459442,-535.56,0.00020821,2]
[375860835,1753763459451,-460.0,0.00021095,2]
[375860836,1753763459461,-460.0,0.00021369,2]
[375860837,1753763459470,-21845.32127106,0.0002249,7]
[375860838,1753763459484,-259.0,0.0002249,7]
[375860839,1753763463243,-460.0,0.00019178,2]
[375860840,1753763463253,-460.0,0.00019178,2]
[375860841,1753763463263,-460.0,0.00019178,2]
[375860842,1753763463273,-283.68555776,0.00019355,2]
[375860843,1753763463283,-460.0,0.00019452,2]
[375860844,1753763463293,-460.0,0.00019726,2]
[375860845,1753763463303,-216.1031716,0.00019946,2]
[375860846,1753763463313,-535.56,0.00021095,2]
[375860847,1753763463323,-535.56,0.00021369,2]
[375860848,1753763463332,-330.889961,0.00021444,2]
[375860849,1753763463342,-460.0,0.00021643,2]
[375860850,1753763463351,-535.56,0.00021643,2]
[375860851,1753763463361,-492.37702136,0.00021917,2]
[375860852,1753763463371,-535.56,0.00021917,2]
[375860853,1753763463381,-535.56,0.00022191,2]
[375860854,1753763463392,-535.56,0.00022465,2]
[375860855,1753763463406,-82989.13046192,0.0002249,7]
[375860856,1753763463416,-208.0,0.00022508,2]
[375860857,1753763463426,-430.1392862,0.00022521,2]
[375860858,1753763463436,-292.4430996,0.00022521,2]
[375860859,1753763463446,-150.104,0.00022556,2]
[375860860,1753763463456,-150.0,0.00022556,2]
[375860861,1753763463468,-150.0,0.00022556,2]
[375860862,1753763463477,-150.083,0.00022556,2]
[375860863,1753763463487,-150.911,0.00022556,2]
[375860864,1753763463497,-246.71187186,0.000226,4]
[375860865,1753763463507,-150.26796403,0.000226,2]
[375860866,1753763463518,-160.0,0.00022627,11]
[375860867,1753763463528,-795.5,0.0002269,5]
[375860868,1753763463538,-151.0,0.00022739,7]
[375860869,1753763463548,-152.639882,0.00022739,7]
[375860870,1753763463559,-151.0,0.00022739,7]
[375860871,1753763463569,-151.0,0.00022739,7]
[375860872,1753763463579,-151.0,0.00022739,7]
[375860873,1753763463589,-274.886701,0.00022739,7]
[375860874,1753763463599,-151.0,0.00022739,7]
[375860875,1753763463609,-558.65116754,0.00022739,2]
[375860876,1753763463619,-520.3,0.00022739,2]
[375860877,1753763463629,-522.54859675,0.00022739,2]
[375860878,1753763463639,-460.0,0.00022739,2]
[375860879,1753763463648,-460.0,0.00022739,2]
[375860880,1753763463658,-183.027764,0.00022739,7]
[375860881,1753763463667,-183.027764,0.00022739,7]
[375860882,1753763463677,-514.06,0.00022739,2]
[375860883,1753763463687,-460.0,0.00022739,2]
[375860884,1753763463697,-460.0,0.00022739,2]
[375860885,1753763463707,-1625.4,0.00022739,2]
[375860886,1753763463717,-3945.19,0.00022739,2]
[375860887,1753763463726,-603.14,0.00022739,2]
[375860888,1753763463736,-460.0,0.00022739,2]
[375860889,1753763463746,-771.0,0.00022739,2]
[375860890,1753763463756,-460.0,0.00022739,2]
[375860891,1753763463765,-616.93,0.00022739,2]
[375860892,1753763463775,-2171.93,0.00022739,2]
[375860893,1753763463785,-683.49,0.00022739,2]
[375860894,1753763463795,-460.0,0.00022739,2]
[375860895,1753763463805,-497.05,0.00022739,2]
[375860896,1753763463815,-2404.12,0.00022739,2]
[375860897,1753763463825,-460.0,0.00022739,2]
[375860898,1753763463835,-564.31,0.00022739,2]
[375860899,1753763463845,-460.0,0.00022739,2]
[375860900,1753763463855,-460.0,0.00022739,2]
[375860901,1753763463864,-460.0,0.00022739,2]
[375860902,1753763463874,-1489.29,0.00022739,2]
[375860903,1753763463884,-460.0,0.00022739,2]
[375860904,1753763463893,-632.77,0.00022739,2]
[375860905,1753763463905,-1406.09,0.00022739,2]
[375860906,1753763463915,-460.0,0.00022739,2]
[375860907,1753763463925,-460.0,0.00022739,2]
[375860908,1753763463935,-460.0,0.00022739,2]
[375860909,1753763463945,-706.04,0.00022739,2]
[375860910,1753763463955,-460.0,0.00022739,2]
[375860911,1753763463964,-460.0,0.00022739,2]
[375860912,1753763463974,-1808.84,0.00022739,2]
[375860913,1753763463983,-473.06,0.00022739,2]
[375860914,1753763463993,-335.46787039,0.00022739,2]
[375860915,1753763464003,-460.0,0.00022739,2]
[375860916,1753763464013,-1309.65,0.00022739,2]
[375860917,1753763464023,-295.54268947,0.00022739,2]
[375860918,1753763464033,-758.29,0.00022739,2]
[375860919,1753763464043,-524.23,0.00022739,2]
[375860920,1753763464052,-617.83,0.00022739,2]
[375860921,1753763464062,-460.0,0.00022739,2]
[375860922,1753763464072,-460.0,0.00022739,2]
[375860923,1753763464081,-1499.41,0.00022739,2]
[375860924,1753763464091,-666.39,0.00022739,2]
[375860925,1753763464100,-1439.13,0.00022739,2]
[375860926,1753763464110,-4336.84,0.00022739,2]
[375860927,1753763464120,-460.0,0.00022739,2]
[375860928,1753763464130,-1784.78,0.00022739,2]
[375860929,1753763464139,-1674.87,0.00022739,2]
[375860930,1753763464150,-460.0,0.00022739,2]
[375860931,1753763464159,-151.0,0.00022739,7]
[375860932,1753763464170,-460.0,0.00022739,2]
[375860933,1753763464180,-683.26,0.00022739,2]
[375860934,1753763464189,-755.63,0.00022739,2]
[375860935,1753763464199,-460.0,0.00022739,2]
[375860936,1753763464209,-2065.79,0.00022739,2]
[375860937,1753763464219,-529.18,0.00022739,2]
[375860938,1753763464229,-535.56,0.00022739,2]
[375860939,1753763464240,-160.0,0.00022776,12]
[375860940,1753763464250,-207.0,0.000229,6]
[375860941,1753763464260,-151.0,0.00022913,7]
[375860942,1753763464270,-151.0,0.00022913,7]
[375860943,1753763464280,-250.02188203,0.00022913,2]
[375860944,1753763464290,-160.0,0.00022926,13]
[375860945,1753763464300,-151.0,0.00022926,7]
[375860946,1753763464310,-154.538855,0.00022926,7]
[375860947,1753763464325,-327.18131642,0.00023,2]
[375860948,1753763464346,-27954.49976538,0.00023,2]
[375860954,1753764105138,159.090385,0.00013699,2]
[375860957,1753764401449,150.0,0.00022187,30]
[375860958,1753764436091,-151.68071061,0.00018684,2]
[375860959,1753764436117,-300.0,0.00018783,2]
[375860960,1753764436139,-588.68328939,0.00018784,2]
[375860961,1753764442137,-4411.31671061,0.00018784,2]
[375860962,1753764442158,-1111.78274678,0.00018784,2]
[375860963,1753764442179,-151.6807106,0.00018814,2]
[375860964,1753764442200,-151.6807106,0.00018943,2]
[375860965,1753764442221,-175.598093,0.00018974,2]
[375860966,1753764442242,-151.6807106,0.00019073,2]
[375860967,1753764442264,-197.02583866,0.00019077,2]
[375860968,1753764442285,-294.82,0.00019168,3]
[375860969,1753764442306,-884.48,0.00019168,3]
[375860970,1753764442326,-1200.0,0.0001917,2]
[375860971,1753764442348,-1200.0,0.00019171,2]
[375860972,1753764442368,-300.0,0.00019172,2]
[375860973,1753764442389,-300.0,0.00019172,2]
[375860974,1753764442410,-300.0,0.00019172,2]
[375860975,1753764442430,-300.0,0.00019172,2]
[375860976,1753764442450,-423.36475502,0.00019172,2]
[375860977,1753764481866,150.0,0.00021849,30]
[375860984,1753764560393,150.0,0.00022107,30]
[375861014,1753764632468,-483.70091695,0.000189,2]
[375861016,1753764632478,-123.12498817,0.00019016,2]
[375861021,1753764632522,-33.87814021,0.00019016,2]
[375861023,1753764632532,-531.24677764,0.00019151,2]
[375861025,1753764632542,-300.0,0.00019172,2]
[375861026,1753764632552,-210.06234445,0.00019172,2]